Cogmind - Beta 13 @@@ ROGUE MODE // 2024.05.21 @ 23:11:38 Player: BatSpy Result: Destroyed by G-34 Mercenary with Small Laser Performance ------------- Evolutions (1) 500 Regions Visited (2) 400 Robots Destroyed (18) 90 Value Destroyed (392) 392 Prototype IDs (0) 0 Alien Tech Used (0) 0 Bonus (0) 0 TOTAL SCORE: 1382 Bonus ------- None Cogmind --------- Core Integrity 0/400 Matter 300/300 Energy 100/100 System Corruption 0% Temperature Cool (12) Movement Core (50) Location -9/Materials Parts ------- > --- POWER (1) -------- (None) > --- PROPULSION (3) --- (None) > --- UTILITY (3) ------ Power Shielding > --- WEAPON (2) ------- (None) > --- INVENTORY (5) ---- Ion Engine Ion Engine EM Pulse Gun Light Cannon Grenade Launcher Peak State ------------ > --- POWER ------------ Light Nuclear Core > --- PROPULSION ------- Aluminum Leg Aluminum Leg > --- UTILITY ---------- Power Shielding > --- WEAPON ----------- Small Laser Beam Rifle > --- INVENTORY -------- Ion Engine Ion Engine EM Pulse Gun Light Cannon Grenade Launcher [Rating: 9] Favorites ----------- Power Ion Engine Engine Ion Engine Power Core Light Nuclear Core Propulsion Wheel Leg Aluminum Leg Wheel Wheel Utility Power Shielding Protection Power Shielding Weapon Medium Laser Energy Gun Medium Laser Ballistic Cannon Light Cannon Build | -11 -10 -9 ------- Run | Yrd Mat Mat Slots Evolved 2 | . . 2 Power . | . . . Propulsion 1 | . . 1 Utility 1 | . . 1 Weapon . | . . . Parts Attached 17 | 5 9 3 Power 4 | 1 2 1 Engine 3 | 1 2 . Core 1 | . . 1 Reactor . | . . . Propulsion 6 | 2 4 . Treads . | . . . Leg 2 | . 2 . Wheel 4 | 2 2 . Hover . | . . . Flight . | . . . Utility 1 | . 1 . Device . | . . . Storage . | . . . Processor . | . . . Hackware . | . . . Protection 1 | . 1 . Artifact . | . . . Weapon 6 | 2 2 2 Energy Gun 5 | 2 1 2 Energy Cannon . | . . . Ballistic Gun . | . . . Ballistic Cannon 1 | . 1 . Launcher . | . . . Special Weapon . | . . . Impact Weapon . | . . . Slashing Weapon . | . . . Piercing Weapon . | . . . Special Melee Weapon . | . . . Unidentified Prototypes . | . . . Parts Lost 10 | . 5 5 Power 1 | . . 1 Propulsion 5 | . 3 2 Utility . | . . . Weapon 4 | . 2 2 Highest Loss Streak 5 | . 4 5 To Critical Strikes . | . . . Average Slot Usage (%) 70 | . 77 52 Engine 10 | . 14 . Core 1 | . . 5 Leg 5 | . 1 17 Wheel 16 | . 22 . Protection 12 | . 12 11 Energy Gun 21 | . 23 17 Ballistic Cannon 3 | . 3 2 Naked Turns . | . . . Heaviest Build 11 | 9 11 11 Greatest Support 20 | 20 20 20 Greatest Overweight (x) 2 | . 2 . Average Overweight (x) . | . . . Largest Inventory Capacity 5 | 5 5 5 Average Capacity 5 | 5 5 5 Most Carried 5 | 5 5 5 Average Carried 4 | 1 4 4 Final Capacity 5 | 5 5 5 Final Carried 5 | 1 5 5 Class Distribution -------------------- 93% | Mutant 6% | Scavenger-Mutant Dominant Class ---------------- Mutant | -10/Materials Mutant | -9/Materials Resources | -11 -10 -9 ----------- Run | Yrd Mat Mat Matter Collected 390 | 217 143 30 Remotely . | . . . Salvage Created 503 | . 361 142 Parts 40 | . 31 9 Haulers Intercepted . | . . . Recyclers Shooed . | . . . Parts Field Recycled . | . . . Retrieved Matter . | . . . Parts Self-Destructed . | . . . Prevented . | . . . Kills | -11 -10 -9 ------- Run | Yrd Mat Mat Combat Hostiles Destroyed 13 | . 9 4 Guns 12 | . 8 4 Cannons 1 | . 1 . Classes Destroyed 5 | . 4 1 Worker 3 | . 3 . Watcher 2 | . 2 . Swarmer 5 | . 3 2 Grunt 6 | . 6 . Sentry 2 | . . 2 Best Kill Streak 8 | . 8 3 Combat Bots Only 5 | . 5 3 Max Kills in Single Turn 2 | . 2 1 Gunslinging . | . . . Exploded . | . . . Melee . | . . . Uniques/NPCs Destroyed . | . . . Combat | -11 -10 -9 -------- Run | Yrd Mat Mat Hostile Shots Fired 159 | . 71 88 Missed 38 | . 17 21 Damage Taken 1357 | . 654 703 Core 630 | . 230 400 Absorbed by Shields . | . . . Redirected to Shielding 24 | . 16 8 Core Remaining (%) 54 | 100 8 . Volleys Fired 50 | . 37 13 Largest 2 | . 2 2 Hottest 100 | . 100 96 Shots Fired 79 | . 55 24 Gun 69 | . 45 24 Cannon 10 | . 10 . Launcher . | . . . Special . | . . . Kinetic 10 | . 10 . Thermal 68 | . 44 24 Explosive . | . . . Electromagnetic 1 | . 1 . Robot Hit Streak 5 | . 5 4 Robot Miss Streak 4 | . 3 4 Penetration Max . | . . . Secondary Targets 1 | . 1 . Max Gunslinging Chain 1 | . 1 . Shots Hit Robots 45 | . 32 13 Core Hits 24 | . 18 6 Critical Kills . | . . . Critical Parts Destroyed . | . . . Critical Strikes 5 | . 5 . Burn 4 | . 4 . Blast 1 | . 1 . Melee Attacks . | . . . Impact . | . . . Slashing . | . . . Piercing . | . . . Sneak Attacks . | . . . Combat Hostiles . | . . . Follow-up Attacks . | . . . Damage Inflicted 742 | . 528 214 Guns 608 | . 394 214 Cannons 134 | . 134 . Explosions . | . . . Melee . | . . . Ramming . | . . . Kinetic 134 | . 134 . Thermal 593 | . 379 214 Explosive . | . . . Electromagnetic 15 | . 15 . Impact . | . . . Slashing . | . . . Piercing . | . . . Highest Corruption . | . . . Average Corruption . | . . . Corruption Purged . | . . . Corruption Blocked . | . . . Overload Shots . | . . . Overflow Damage 8 | . 8 . Projectiles 8 | . 8 . Explosions . | . . . Melee . | . . . Knockbacks 2 | . 2 . Impact . | . . . Kinetic 2 | . 2 . Secondary . | . . . Self-Inflicted Damage . | . . . Shots . | . . . Rammed . | . . . Targets Rammed . | . . . Kicked . | . . . Crushed . | . . . Highest Temperature 349 | . 349 193 Average Temperature 123 | . 138 73 Received Heat Transfer 609 | . 387 222 Effects 4 | . 4 . Energy Bleed 2 | . 2 . Interference 2 | . 2 . Siege Activations . | . . . Robots Corrupted . | . . . Combat Hostiles . | . . . Parts Fried . | . . . Impact Corruptions . | . . . Robots Melted . | . . . Combat Hostiles . | . . . Parts Melted 3 | . 3 . Heat Transferred 1927 | . 1406 521 Parts Sabotaged . | . . . Parts Stolen . | . . . Parts Stripped . | . . . Power Chain Reactions . | . . . Alert | -11 -10 -9 ------- Run | Yrd Mat Mat Peak Influence 225 | . 225 204 Initial 94 | . . 94 Average 128 | . 139 145 Maximum Alert Level 1 | . 1 1 Low Security (%) 85 | 100 78 97 Level 1 14 | . 21 2 Level 2 . | . . . Level 3 . | . . . Level 4 . | . . . Level 5 . | . . . High Security . | . . . Max Security . | . . . Squads Dispatched 3 | . 2 1 Investigation . | . . . Extermination . | . . . Reinforcement 3 | . 2 1 Assault . | . . . Garrison . | . . . Intercept . | . . . Searches Triggered . | . . . Construction Impeded . | . . . Haulers Reinforced . | . . . Active Scanning Responses . | . . . Cargo Convoy Interrupts . | . . . Stealth | -11 -10 -9 --------- Run | Yrd Mat Mat Distress Signals . | . . . Communications Jammed . | . . . Distress Signals . | . . . Times Spotted 24 | . 15 9 Peak Tracking Total 5 | . 4 5 Tactical Retreats . | . . . Traps | -11 -10 -9 ------- Run | Yrd Mat Mat Traps Triggered . | . . . Indirectly . | . . . Trap Hack Attempts . | . . . Triggered . | . . . Disarmed . | . . . Reprogrammed . | . . . Reused . | . . . Traps Extracted . | . . . Installed . | . . . Triggered . | . . . Machines | -11 -10 -9 ---------- Run | Yrd Mat Mat Machines Disabled . | . . . Max in Single Turn . | . . . Machines Repaired . | . . . Machines Dismantled . | . . . Machines Sabotaged . | . . . Overloaded Fab Kills . | . . . Hacking | -11 -10 -9 --------- Run | Yrd Mat Mat Machines Accessed 1 | . 1 . Terminals 1 | . 1 . Fabricators . | . . . Repair Stations . | . . . Recycling Units . | . . . Scanalyzers . | . . . Garrison Access . | . . . Total Hacks 3 | . 3 . Successful 1 | . 1 . Failed 2 | . 2 . Catastrophic . | . . . Database Lockouts . | . . . Manual 3 | . 3 . Terminals 3 | . 3 . Fabricators . | . . . Repair Stations . | . . . Recycling Units . | . . . Scanalyzers . | . . . Garrison Access . | . . . Terminal Hacks 1 | . 1 . Zone Layout 1 | . 1 . Fabricator Hacks . | . . . Repair Station Hacks . | . . . Recycling Unit Hacks . | . . . Scanalyzer . | . . . Garrison Access Hacks . | . . . Unauthorized Hacks . | . . . Terminals . | . . . Fabricators . | . . . Repair Stations . | . . . Recycling Units . | . . . Scanalyzers . | . . . Garrison Access . | . . . Data Cores Recovered . | . . . Used . | . . . Hacking Detections 1 | . 1 . Full Trace Events . | . . . Feedback Events . | . . . Feedback Blocked . | . . . Robot Schematics Acquired . | . . . Robots Built . | . . . Authchips . | . . . Time . | . . . Total Robot Build Rating . | . . . Part Schematics Acquired . | . . . Parts Built . | . . . Authchips . | . . . Time . | . . . Total Part Build Rating . | . . . Parts Repaired . | . . . Time . | . . . Parts Recycled . | . . . Recycled Matter . | . . . Retrieved Matter . | . . . Retrieved Components . | . . . Parts Scanalyzed . | . . . Part Schematics Acquired . | . . . Parts Damaged . | . . . Bothacking | -11 -10 -9 ------------ Run | Yrd Mat Mat Used RIF Installer . | . . . Robots Hacked . | . . . Non-combat . | . . . Combat . | . . . Robot Hacks Applied . | . . . Relay Couplers Released . | . . . Fabnet Peak Effective % . | . . . Robots Rewired . | . . . Allies Hacked . | . . . Hacks Repelled . | . . . Allies | -11 -10 -9 -------- Run | Yrd Mat Mat Total Allies . | . . . Largest Group . | . . . Highest-Rated Group . | . . . Highest-Rated Ally . | . . . Total Orders . | . . . Ally Attacks . | . . . Total Damage . | . . . Kills . | . . . Allies Corrupted . | . . . Allies Melted . | . . . Intel | -11 -10 -9 ------- Run | Yrd Mat Mat Robot Analysis Total . | . . . Derelict Logs Recovered . | . . . Drone Launches . | . . . Drone Recoveries . | . . . Exploration | -11 -10 -9 ------------- Run | Yrd Mat Mat Turns Passed 447 | 41 297 109 Spaces Moved 274 | 43 203 28 Core 16 | 13 3 . Treads . | . . . Legs 41 | . 13 28 Wheels 217 | 30 187 . Hover . | . . . Flight . | . . . Fastest Speed 50 | 50 80 120 Average Speed 86 | 70 85 120 Slowest Speed 150 | 80 150 120 Overloaded Moves . | . . . Propulsion Burnouts . | . . . Robots Hopped . | . . . Cave-ins Triggered . | . . . Exploration Rate (%) 13 | 2 33 6 Regions Visited 2 Branch Regions . Pre-discovered Areas . | . . . Known Exits Taken . | . . . Unknown Exits Taken 2 | 1 1 . Scrap Searched . | . . . Spaces Dug . | . . . Terrain Destroyed . | . . . Melee . | . . . Projectile . | . . . AOE . | . . . Terrain Rammed . | . . . Walls Destroyed . | . . . Machines Disabled . | . . . Actions | -11 -10 -9 --------- Run | Yrd Mat Mat Total 402 | 53 271 78 Wait 43 | . 11 32 Move 272 | 42 202 28 Hop . | . . . Pick Up 17 | 6 10 1 Fast Attach 1 | . 1 . Attach 10 | 5 5 . Detach . | . . . Swap 6 | . 3 3 Drop 3 | . 2 1 Fire 50 | . 37 13 Melee . | . . . Ram . | . . . Kick . | . . . Crush . | . . . Escape Stasis . | . . . Rewire . | . . . Trap . | . . . Miscellaneous . | . . . Route ------- -11/Scrapyard -10/Materials -9/Materials History --------- Turn | Location | Event 6 | -11/Scrapyard | Discovered new exit (range 16) 42 | -11/Scrapyard | Entered Materials 171 | -10/Materials | Discovered new exit (range 15) 219 | -10/Materials | Core integrity fell below 50% 253 | -10/Materials | Core integrity fell below 20% 303 | -10/Materials | Lost 4 parts (2n2w) 309 | -10/Materials | Build established: Mutant 339 | -10/Materials | Entered another Materials area 339 | -9/Materials | Evolved 2 slots: Propulsion x1, Utility x1 426 | -9/Materials | Core integrity fell below 50% 445 | -9/Materials | Core integrity fell below 20% 448 | -9/Materials | Destroyed by G-34 Mercenary with Small Laser Last Messages --------------- Beam Rifle destroyed. S-10 Pest heat spikes uncontrollably. S-10 Pest overheating. Sml. Laser destroyed. S-10 Pest overheating. S-10 Pest heat short circuits Flight Unit. S-10 Pest overheating. S-10 Pest heat spikes uncontrollably. S-10 Pest overheating. S-10 Pest heat damages core (-2). S-10 Pest overheating. U-05 Engineer lays Concrete. S-10 Pest heat short circuits Lgt. Ion Engine. S-10 Pest overheating. U-05 Engineer lays Concrete. S-10 Pest heat damages Broken Lgt. Ion Engine, Flight Unit, Broken Flight Unit. S-10 Pest overheating. U-05 Engineer lays Concrete. S-10 Pest overheating. Map ----- +----------------------------------------------------+ | ????????????????????????????????????????????????? | | ????????????????????????????????????????????????? | | ????????????????????????????????????????????????? | | ????????????????????????????????????????????????? | | ????????????????????????????????????????????????? | | ????????????????????????????????????????????????? | | ????????????????????????????????????????????????? | | ???????????????????????????????????? ??????????? | | ???????????????????????????????????? ??????????? | | ???????????????????????????????????? ??????????? | | ???????????????????????????###?###?# #?????????? | | ???????????????????????????# #?# #?????????? | | ???????????????????????????# #?# #?????????? | | ??????????????????????????? T #?# #?????????? | | ???????????????????????????? ??# #?????????? | | ???????????????????????????? ??# #?????????? | | ????????????????????????????# #??# #?????????? | | ????????????????????????????# #??# #?????????? | | ????????????????????????????# #??# #?????????? | | ????????????????????????????# #??# #?????????? | | ????????????????????????????# #??# #?????????? | | ????????????????######??????# #??# #?????????? | | ????????????????# ####### #### ######????? | | ????????????????# ! #????? | | ????????????????# % s * #????? | | ????????????????# ag @ o= #????? | | ????????????????# ###%[ #### ###### ####????? | | ????????????????##??????#% #?# ??# #??????? | | ????????????????????????#gg #?# #?## ##??????? | | ????????????????????????# #?## ###????#???????? | | ????????????????????????#* #??###??????????????? | | ????????????????????????#%[ #???????????????????? | | ????????????????????????#!! #???????????????????? | | ????????????????????????# g #???????????????????? | | ????????????????????????# #???????????????????? | | ????????????????????????# #???????????????????? | | ????????????????????????# #???????????????????? | | ????????????????????????# #???????????????????? | | ????????????????????????# #???????????????????? | | ????????????????????????# #???????????????????? | | ????????????????????????? #???????????????????? | | ????????????????????????? ???????????????????? | | ????????????????????????? ???????????????????? | | ????????????????????????? ????????????????????? | | ????????????????????????????????????????????????? | | ????????????????????????????????????????????????? | | ????????????????????????????????????????????????? | | ????????????????????????????????????????????????? | | ????????????????????????????????????????????????? | | ????????????????????????????????????????????????? | +----------------------------------------------------+ Best States ------------- Heat Dissipation 28 Energy Generation 14 Energy Capacity 250 Matter Stores 300 Matter Capacity 300 Sight Range 16 Terrain Scan Density 10 Power Shielding 33 Evasion (%) 55 Item Schematics ----------------- None Robot Schematics ------------------ None Fabricated ------------ Nothing Alien Tech Used ----------------- None Achievements -------------- None Challenges ------------ None Game ------ Seed DisruptorActuatorAccelerator Manual? 0 Play Time 00:06:03 Cumulative 18.0 hours Start 2024.05.21 @ 23:06:21 End 2024.05.21 @ 23:11:38 Sessions 1 Manual Loads 0 Difficulty Rogue Special Mode None Game No. 33 Rogue 33 Adventurer 0 Explorer 0 Win Type - Total 0 Types 0/0/0/0/0/0/0/0/0 Lore% 21 Gallery% 28 Achievement% 23 Wizard Run 0 Options --------- Layout 1 ASCII 0 Keyboard 0 Movement Mouse Keybinds 0 Fullscreen 2 Font 32/SmallcapsGlow Map View 50x35 Zoom Use 0% Tactical HUD 0 Map Filters NONE Filters NONE Steam 1 RUN: 5353b7e1-0e03-44ce-9a4a-ce6a9697e547